Cogmind - Beta 12 @@@ ROGUE MODE // 2023.04.24 @ 16:37:13 Player: pointone Result: Destroyed by K2-DRH(B) with Slug Cannon Performance ------------- Evolutions (1) 500 Regions Visited (5) 1000 Robots Destroyed (31) 155 Value Destroyed (839) 839 Prototype IDs (3) 60 Alien Tech Used (0) 0 Bonus (224) 224 TOTAL SCORE: 2778 Bonus ------- Met Imprinter 300 Friendly Fire -76 Cogmind --------- Core Integrity 0/400 Matter 12/300 Energy 90/100 System Corruption 14% Temperature Cool (0) Movement Core (50) Location -7/Zion Parts ------- > --- POWER (1) -------- (None) > --- PROPULSION (3) --- (None) > --- UTILITY (3) ------ (None) > --- WEAPON (2) ------- (None) > --- INVENTORY (5) ---- Small Storage Unit Light Armor Plating Particle Gun Heavy Assault Rifle Self-destruct Interrupter (50) Peak State ------------ > --- POWER ------------ Light Nuclear Core > --- PROPULSION ------- Aluminum Leg Aluminum Leg Aluminum Leg > --- UTILITY ---------- Heat Sink Large Storage Unit Hacking Drone Bay > --- WEAPON ----------- EM Shotgun Improved Light Cannon > --- INVENTORY -------- Light Ion Engine Aluminum Leg Heat Sink Small Storage Unit Light Armor Plating Light Armor Plating Particle Gun Spread Laser Light Assault Rifle Heavy Assault Rifle Grenade Launcher Rocket Launcher Stasis Trap [Rating: 22] Favorites ----------- Power Light Nuclear Core Engine Ion Engine Power Core Light Nuclear Core Propulsion Aluminum Leg Treads Light Treads Leg Aluminum Leg Utility Heat Sink Device Heat Sink Storage Large Storage Unit Processor Signal Interpreter Weapon EM Shotgun Energy Gun EM Shotgun Ballistic Gun Assault Rifle Ballistic Cannon Improved Light Cannon Launcher Rocket Launcher Build | -11 -10 -10 -9 -9 -7 ------- Run | Jun Mat Min Mat Min Zio Slots Evolved 2 | . . . 2 . . Power . | . . . . . . Propulsion 1 | . . . 1 . . Utility 1 | . . . 1 . . Weapon . | . . . . . . Parts Attached 42 | 6 1 13 7 . 15 Power 6 | 1 . 2 1 . 2 Engine 5 | 1 . 2 . . 2 Core 1 | . . . 1 . . Reactor . | . . . . . . Propulsion 11 | 2 . 3 1 . 5 Treads 1 | . . . . . 1 Leg 10 | 2 . 3 1 . 4 Wheel . | . . . . . . Hover . | . . . . . . Flight . | . . . . . . Utility 8 | 1 1 3 1 . 2 Device 4 | 1 . 1 . . 2 Storage 3 | . . 2 1 . . Processor 1 | . 1 . . . . Hackware . | . . . . . . Protection . | . . . . . . Artifact . | . . . . . . Weapon 17 | 2 . 5 4 . 6 Energy Gun 4 | . . 1 1 . 2 Energy Cannon . | . . . . . . Ballistic Gun 6 | 2 . 3 1 . . Ballistic Cannon 2 | . . . 1 . 1 Launcher 5 | . . 1 1 . 3 Special Weapon . | . . . . . . Impact Weapon . | . . . . . . Slashing Weapon . | . . . . . . Piercing Weapon . | . . . . . . Special Melee Weapon . | . . . . . . Unidentified Prototypes 1 | . . . . . 1 Parts Lost 21 | . . 2 2 . 17 Power 4 | . . . 1 . 3 Propulsion 8 | . . . . . 8 Utility 1 | . . . . . 1 Weapon 8 | . . 2 1 . 5 Highest Loss Streak 9 | . . 1 2 . 9 To Critical Strikes 2 | . . . . . 2 Average Slot Usage (%) 88 | . 89 100 87 88 83 Engine 5 | . 14 14 9 . 1 Core 5 | . . . . 11 9 Leg 30 | . 28 28 33 33 31 Device 11 | . 14 14 11 11 9 Storage 10 | . . 13 11 11 11 Energy Gun 9 | . . 11 11 11 9 Ballistic Gun 7 | . 28 16 9 11 . Ballistic Cannon 5 | . . . . . 9 Naked Turns . | . . . . . . Heaviest Build 36 | 7 7 16 33 30 36 Greatest Support 50 | 20 20 20 30 30 50 Greatest Overweight (x) 2 | . . . 1 . 2 Average Overweight (x) . | . . . . . . Largest Inventory Capacity 15 | 5 5 8 15 15 15 Average Capacity 12 | 5 5 7 14 15 15 Most Carried 15 | 1 4 8 13 13 15 Average Carried 10 | . 2 7 9 13 13 Final Capacity 15 | 5 5 8 15 15 5 Final Carried 13 | . 4 8 13 13 5 Class Distribution -------------------- 82% | Scavenger-Mutant 17% | Mutant Dominant Class ---------------- Mutant | -10/Materials Scavenger-Mutant | -10/Mines Scavenger-Mutant | -9/Materials Scavenger-Mutant | -9/Mines Scavenger-Mutant | -7/Zion Resources | -11 -10 -10 -9 -9 -7 ----------- Run | Jun Mat Min Mat Min Zio Matter Collected 740 | 284 32 249 103 . 72 Remotely . | . . . . . . Salvage Created 836 | 30 32 454 137 . 183 Parts 55 | 1 5 24 13 . 12 Haulers Intercepted . | . . . . . . Recyclers Shooed . | . . . . . . Parts Field Recycled . | . . . . . . Retrieved Matter . | . . . . . . Parts Self-Destructed . | . . . . . . Prevented . | . . . . . . Kills | -11 -10 -10 -9 -9 -7 ------- Run | Jun Mat Min Mat Min Zio Combat Hostiles Destroyed 23 | 1 2 11 4 . 5 Guns 14 | 1 2 8 3 . . Cannons 1 | . . . . . 1 AOE 8 | . . 3 1 . 4 Classes Destroyed 11 | 1 1 1 3 . 5 Worker 1 | . . . 1 . . Recycler 1 | . . 1 . . . Operator 1 | . . . 1 . . Swarmer 6 | . 2 3 1 . . Grunt 11 | 1 . 8 2 . . Sentry 1 | . . . 1 . . Zionite 5 | . . . . . 5 Tinkerer 1 | . . . . . 1 Wasp 1 | . . . . . 1 Savage 1 | . . . . . 1 Butcher 2 | . . . . . 2 Mutant 1 | . . . . . 1 Best Kill Streak 6 | 1 1 3 3 . 6 Combat Bots Only 5 | 1 1 3 2 . 5 Max Kills in Single Turn 3 | 1 1 3 2 . 3 Gunslinging . | . . . . . . Exploded 3 | . . 3 1 . 3 Melee . | . . . . . . Uniques/NPCs Destroyed . | . . . . . . Combat | -11 -10 -10 -9 -9 -7 -------- Run | Jun Mat Min Mat Min Zio Damage Taken 2438 | 66 102 406 314 . 1550 Core 529 | 11 24 72 6 . 416 Absorbed by Shields . | . . . . . . Core Remaining (%) 76 | 95 . 57 . . . Volleys Fired 98 | 6 15 33 14 . 30 Largest 2 | 2 2 2 2 . 2 Hottest 104 | 40 40 85 104 . 65 Shots Fired 164 | 12 30 65 25 . 32 Gun 128 | 12 30 64 20 . 2 Cannon 10 | . . . 3 . 7 Launcher 26 | . . 1 2 . 23 Special . | . . . . . . Kinetic 101 | 12 30 40 12 . 7 Thermal 35 | . . 24 9 . 2 Explosive 26 | . . 1 2 . 23 Electromagnetic 2 | . . . 2 . . Robot Hit Streak 11 | 3 3 11 5 . 7 Robot Miss Streak 5 | 1 2 4 5 . 2 Penetration Max . | . . . . . . Secondary Targets 2 | . . 2 . . . Max Gunslinging Chain 1 | . . 1 . . . Shots Hit Robots 91 | 8 16 41 15 . 11 Core Hits 63 | 2 4 25 8 . 24 Critical Kills . | . . . . . . Critical Parts Destroyed 1 | . . . 1 . . Critical Strikes 2 | . . 1 1 . . Burn 1 | . . 1 . . . Destroy 1 | . . . 1 . . Melee Attacks . | . . . . . . Impact . | . . . . . . Slashing . | . . . . . . Piercing . | . . . . . . Sneak Attacks . | . . . . . . Combat Hostiles . | . . . . . . Follow-up Attacks . | . . . . . . Damage Inflicted 2146 | 89 175 660 330 . 892 Guns 981 | 89 175 521 148 . 48 Cannons 122 | . . . 41 . 81 Explosions 1043 | . . 139 141 . 763 Melee . | . . . . . . Ramming . | . . . . . . Kinetic 706 | 89 175 285 76 . 81 Thermal 454 | . . 236 170 . 48 Explosive 963 | . . 139 61 . 763 Electromagnetic 23 | . . . 23 . . Impact . | . . . . . . Slashing . | . . . . . . Piercing . | . . . . . . Highest Corruption 14 | . . . . . 14 Average Corruption 7 | . . . . . 7 Corruption Purged . | . . . . . . Corruption Blocked . | . . . . . . Effects 8 | . . . . . 8 Message Errors 1 | . . . . . 1 Matter Fused 3 | . . . . . 3 Heat Flow Errors 2 | . . . . . 2 Energy Discharges 1 | . . . . . 1 Weapon Failures 1 | . . . . . 1 Overload Shots . | . . . . . . Overflow Damage 30 | . . . 11 . 19 Projectiles . | . . . . . . Explosions 30 | . . . 11 . 19 Melee . | . . . . . . Knockbacks . | . . . . . . Impact . | . . . . . . Kinetic . | . . . . . . Secondary . | . . . . . . Self-Inflicted Damage 185 | . . . . . 185 Shots 7 | . . . . . 7 Rammed . | . . . . . . Targets Rammed . | . . . . . . Kicked . | . . . . . . Crushed . | . . . . . . Highest Temperature 242 | 6 . 60 24 . 242 Average Temperature 34 | 6 . 23 11 . 101 Received Heat Transfer 423 | 36 . 225 72 . 90 Siege Activations . | . . . . . . Robots Corrupted . | . . . . . . Combat Hostiles . | . . . . . . Parts Fried . | . . . . . . Impact Corruptions . | . . . . . . Robots Melted . | . . . . . . Combat Hostiles . | . . . . . . Parts Melted 3 | . . 2 1 . . Heat Transferred 1098 | . . 666 372 . 60 Parts Sabotaged . | . . . . . . Parts Stolen . | . . . . . . Parts Stripped . | . . . . . . Power Chain Reactions 1 | . . . 1 . . Missiles Intercepted . | . . . . . . Alert | -11 -10 -10 -9 -9 -7 ------- Run | Jun Mat Min Mat Min Zio Peak Influence 248 | 20 198 248 142 55 . Initial 76 | . 13 76 7 55 . Average 90 | 2 97 107 56 55 . Maximum Alert Level 1 | . . 1 . . . Low Security (%) 99 | 100 100 99 100 100 . Level 1 . | . . . . . . Level 2 . | . . . . . . Level 3 . | . . . . . . Level 4 . | . . . . . . Level 5 . | . . . . . . High Security . | . . . . . . Max Security . | . . . . . . Squads Dispatched . | . . . . . . Investigation . | . . . . . . Extermination . | . . . . . . Reinforcement . | . . . . . . Assault . | . . . . . . Garrison . | . . . . . . Intercept . | . . . . . . Searches Triggered . | . . . . . . Construction Impeded . | . . . . . . Haulers Reinforced . | . . . . . . Active Scanning Responses . | . . . . . . Cargo Convoy Interrupts . | . . . . . . Stealth | -11 -10 -10 -9 -9 -7 --------- Run | Jun Mat Min Mat Min Zio Distress Signals 4 | . 1 . 3 . . Communications Jammed . | . . . . . . Distress Signals . | . . . . . . Times Spotted 61 | 1 8 9 10 . 33 Peak Tracking Total 16 | 1 3 2 5 . 16 Tactical Retreats 7 | . 2 1 . . 4 Traps | -11 -10 -10 -9 -9 -7 ------- Run | Jun Mat Min Mat Min Zio Traps Triggered . | . . . . . . Indirectly . | . . . . . . Trap Hack Attempts . | . . . . . . Triggered . | . . . . . . Disarmed . | . . . . . . Reprogrammed . | . . . . . . Reused . | . . . . . . Traps Extracted . | . . . . . . Installed . | . . . . . . Triggered . | . . . . . . Most Traps Carried 1 | . . 1 1 . 1 Machines | -11 -10 -10 -9 -9 -7 ---------- Run | Jun Mat Min Mat Min Zio Machines Disabled 2 | . 1 . . . 1 Max in Single Turn 1 | . 1 . . . 1 Machines Repaired . | . . . . . . Machines Sabotaged . | . . . . . . Overloaded Fab Kills . | . . . . . . Hacking | -11 -10 -10 -9 -9 -7 --------- Run | Jun Mat Min Mat Min Zio Machines Accessed 3 | . . 1 2 . . Terminals 3 | . . 1 2 . . Fabricators . | . . . . . . Repair Stations . | . . . . . . Recycling Units . | . . . . . . Scanalyzers . | . . . . . . Garrison Access . | . . . . . . Total Hacks 18 | . . 6 12 . . Successful 12 | . . 3 9 . . Failed 5 | . . 3 2 . . Catastrophic . | . . . . . . Database Lockouts 1 | . . . 1 . . Manual 5 | . . . 4 . 1 Terminals 18 | . . 6 12 . . Fabricators . | . . . . . . Repair Stations . | . . . . . . Recycling Units . | . . . . . . Scanalyzers . | . . . . . . Garrison Access . | . . . . . . Terminal Hacks 12 | . . 3 9 . . Record 7 | . . 3 4 . . Prototype ID Bank 1 | . . . 1 . . Alert Level 1 | . . . 1 . . Locate Traps 1 | . . . 1 . . Maintenance Status 1 | . . . 1 . . Zone Layout 1 | . . . 1 . . Fabricator Hacks . | . . . . . . Repair Station Hacks . | . . . . . . Recycling Unit Hacks . | . . . . . . Scanalyzer . | . . . . . . Garrison Access Hacks . | . . . . . . Unauthorized Hacks . | . . . . . . Terminals . | . . . . . . Fabricators . | . . . . . . Repair Stations . | . . . . . . Recycling Units . | . . . . . . Scanalyzers . | . . . . . . Garrison Access . | . . . . . . Data Cores Recovered 1 | . . . 1 . . Used 1 | . . . 1 . . Hacking Detections 3 | . . 1 2 . . Full Trace Events . | . . . . . . Feedback Events . | . . . . . . Feedback Blocked . | . . . . . . Robot Schematics Acquired 4 | . . . . . 4 Robots Built . | . . . . . . Authchips . | . . . . . . Time . | . . . . . . Total Robot Build Rating . | . . . . . . Part Schematics Acquired 15 | . . . . . 15 Parts Built . | . . . . . . Authchips . | . . . . . . Time . | . . . . . . Total Part Build Rating . | . . . . . . Parts Repaired . | . . . . . . Time . | . . . . . . Parts Recycled . | . . . . . . Recycled Matter . | . . . . . . Retrieved Matter . | . . . . . . Retrieved Components . | . . . . . . Parts Scanalyzed . | . . . . . . Part Schematics Acquired . | . . . . . . Parts Damaged . | . . . . . . Bothacking | -11 -10 -10 -9 -9 -7 ------------ Run | Jun Mat Min Mat Min Zio Used RIF Installer . | . . . . . . Robots Hacked . | . . . . . . Non-combat . | . . . . . . Combat . | . . . . . . Robot Hacks Applied . | . . . . . . Relay Couplers Released . | . . . . . . Fabnet Peak Effective % . | . . . . . . Robots Rewired . | . . . . . . Allies Hacked . | . . . . . . Hacks Repelled . | . . . . . . Allies | -11 -10 -10 -9 -9 -7 -------- Run | Jun Mat Min Mat Min Zio Total Allies 4 | . . . . . 4 Largest Group 4 | . . . . . 4 Highest-Rated Group 84 | . . . . . 84 Highest-Rated Ally 25 | . . . . . 25 Total Orders . | . . . . . . Ally Attacks . | . . . . . . Total Damage . | . . . . . . Kills . | . . . . . . Allies Corrupted . | . . . . . . Allies Melted . | . . . . . . Intel | -11 -10 -10 -9 -9 -7 ------- Run | Jun Mat Min Mat Min Zio Robot Analysis Total . | . . . . . . Derelict Logs Recovered 4 | . . 2 . . 2 Drone Launches . | . . . . . . Drone Recoveries . | . . . . . . Exploration | -11 -10 -10 -9 -9 -7 ------------- Run | Jun Mat Min Mat Min Zio Turns Passed 3429 | 85 244 834 245 3 2018 Spaces Moved 1962 | 57 145 573 154 3 1030 Core 13 | 13 . . . . . Treads 20 | . . . . . 20 Legs 1929 | 44 145 573 154 3 1010 Wheels . | . . . . . . Hover . | . . . . . . Flight . | . . . . . . Fastest Speed 50 | 50 120 120 120 120 120 Average Speed 153 | 104 120 120 122 120 184 Slowest Speed 260 | 120 120 120 190 120 260 Overloaded Moves . | . . . . . . Propulsion Burnouts . | . . . . . . Robots Hopped . | . . . . . . Cave-ins Triggered . | . . . . . . Exploration Rate (%) 39 | 6 37 89 18 6 82 Regions Visited 5 Branch Regions 3 Pre-discovered Areas 1 | . . . . . 1 Known Exits Taken 2 | . 1 . 1 . . Unknown Exits Taken 3 | 1 . 1 . 1 . Scrap Searched 2 | . . 2 . . . Spaces Dug . | . . . . . . Terrain Destroyed 57 | . . 9 14 . 34 Melee . | . . . . . . Projectile . | . . . . . . AOE 57 | . . 9 14 . 34 Terrain Rammed . | . . . . . . Walls Destroyed . | . . . . . . Machines Disabled . | . . . . . . Actions | -11 -10 -10 -9 -9 -7 --------- Run | Jun Mat Min Mat Min Zio Total 2216 | 69 187 660 185 2 1113 Wait 81 | . 23 25 3 . 30 Move 1957 | 56 144 572 153 2 1030 Hop . | . . . . . . Pick Up 25 | 1 4 7 8 . 5 Fast Attach 13 | 5 1 2 . . 5 Attach 13 | 1 . 2 3 . 7 Detach 2 | . . 1 . . 1 Swap 16 | . . 9 4 . 3 Drop 11 | . . 9 . . 2 Fire 98 | 6 15 33 14 . 30 Melee . | . . . . . . Ram . | . . . . . . Kick . | . . . . . . Crush . | . . . . . . Escape Stasis . | . . . . . . Rewire . | . . . . . . Trap . | . . . . . . Miscellaneous . | . . . . . . Route ------- -11/Junkyard -10/Materials -10/Mines -9/Materials (discovered 2 exits: *Min x2) -9/Mines -7/Zion History --------- Turn | Location | Event 2 | -11/Junkyard | Met Revision 17 56 | -11/Junkyard | Discovered new exit (range 8) 86 | -11/Junkyard | Entered Materials 307 | -10/Materials | Discovered new exit (range 9) 316 | -10/Materials | Build established: Mutant 318 | -10/Materials | Identified exit to Mines 330 | -10/Materials | Entered Mines 396 | -10/Mines | Received a Rocket Launcher from a helpful Derelict 538 | -10/Mines | Learned location of 1 exit from Materials 696 | -10/Mines | Learned Materials garrison access intel 822 | -10/Mines | Build established: Scavenger-Mutant 1012 | -10/Mines | Found a hidden stash of uninstalled traps 1154 | -10/Mines | Discovered new exit (range 8) 1164 | -10/Mines | Entered Materials 1164 | -9/Materials | Evolved 2 slots: Propulsion x1, Utility x1 1165 | -9/Materials | Identified exit to Mines 1252 | -9/Materials | Central database locked down 1376 | -9/Materials | Discovered exit to Mines (range 9) 1409 | -9/Materials | Entered Mines 1410 | -9/Mines | A Derelict revealed a hidden shortcut to a safe place 1412 | -9/Mines | Entered Zion 1590 | -7/Zion | Received a visual enhancement algorithm 1702 | -7/Zion | Gained Derelict followers 1881 | -7/Zion | Given the Hacking Drone Bay 1881 | -7/Zion | Found Prototype Device 1881 | -7/Zion | Identified Hacking Drone Bay 2042 | -7/Zion | Learned location of Extension (-5) 2339 | -7/Zion | Found GAL Module 2410 | -7/Zion | Learned Factory emergency access door positions 3168 | -7/Zion | Attacked by Zionites 3253 | -7/Zion | Lost 9 parts (2p2n1u4w) 3385 | -7/Zion | System corruption reached 10% 3386 | -7/Zion | Core integrity fell below 50% 3402 | -7/Zion | Spotted K1-0IM(B) 3413 | -7/Zion | Spotted K2-DRH(B) 3421 | -7/Zion | Core integrity fell below 20% 3430 | -7/Zion | Destroyed by K2-DRH(B) with Slug Cannon Last Messages --------------- 03385_ QQ-NHJ(z) pulls a Mak. Laser out of the Twisted Machinery. 03386_ Critical hit (Smash). 03386_ Mak. Leg destroyed. 03386_ System corrupted by crushing effect (+2). 03389_ AW-R3L(z) pulls a Mak. Shrapnel Gun out of the Twisted Machinery. 03390_ JT-T7T(z) heat damages Mak. Laser. 03394_ System corrupted: Matter fused (-8). 03402_ KL-O9X(z) destroyed. 03405_ Aluminum Leg destroyed. 03409_ System corrupted: Heat flow error (+158). CY-08G(z) bursts out of the Twisted Machinery. 03417_ Y6-EIF(z) suffers critical hit (Destroy). 03417_ CY-08G(z) pulls a Mak. Spear out of the Twisted Machinery. 03417_ Mak. Leg destroyed. 03418_ CY-08G(z) destroyed. 03423_ Knocked back. 03427_ System Quarantine Field Array disabled. 03429_ Mak. Leg destroyed. 03430_ Dropped Lrg. Storage Unit. [Achievement: First Step to Greatness] Map ----- +----------------------------------------------------+ | " " "##?????????????????????????????????????? | | """ ""#?????????????????????????????????????? | | #"" ""###???????????????????????????????????? | | """ """#???????????????????????????????????? | | """ """#???????????????????????????????????? | | ""##??????????????????????????????????? | | ""#??????????????????????????????????? | | ""#??????????????????????????????????? | | """##??????????????????????????????????? | | ""#"???????????????????????????????????? | | " ""##????????????????????????????????????? | | "" """#????????????????????????????????????? | | "" "" "#????????????????????????????????????? | | "" """ ""#???????????????????????????????????? | | "" """""""##???????????????????????????????????? | | " =%"""""#""#???????????????????????????????????? | | " /"""#""####??????????????????????????????????? | | "" ""#""""#?????????????????????????????????? | | """ """"""#?#####???????????????????????????? | | "#"""" "" "#?# "############????????????????? | | "###""" ###BB""""""""""""#???????????????? | | ""####" ##;BB """""""""""#???????????????? | | ""#?#"" z # zz #####???????????? | | ""#?##" /z zz % #??####?????? | | "####"" %z zBB !&& #### ####### | | "#"##"" ""# BB%zz%z@[/ ## | | """"""" "### """ """"""""## | | ""#" """"""""""""## | | ""## "############## ## | | "#######????????????# ######## | | ""#??????????????????# ##?????## | | """"##??????????????????## #?????## | | """##"#????????????????????###??#### | | " """##?##?????????????????????????# ### | | """ ""#""###??????????????????????????# ##? | | """ """"""""#??????????????????????????# #? | | """ """" "#??????????????????????????# # # | | "" "" "##?????????????????????????# ## | | ""#?????????????????????????# ### | | ""####??????????????????????# #?###### | | """ """""#?????????????????????## ##?????? | | """ ""#??????????????????????# #?????? | | """" """"#?????????????????????# #?????? | | """""" ""##??????????????????????## ##?????? | | """"""" ""###????????????????????## #?????? | | "###""" """"#????????????????????# ##?????? | | """#""" """##????????????????????## #?????? | | """""""" "##?????????????????????# #?????? | | """"" "##?????????????????????# ##?????? | | """" ""#?????????????????????## ##??????? | +----------------------------------------------------+ Best States ------------- Heat Dissipation 38 Energy Generation 14 Energy Capacity 275 Matter Stores 300 Matter Capacity 300 Sight Range 16 Terrain Scan Density 10 Evasion (%) 55 Recoil Reduction 1 Item Schematics ----------------- Fission Core | -7/Zion | Archive Mak. Axe | -7/Zion | Archive Mak. Terrain Scan Processor | -7/Zion | Archive Thermal Shield | -7/Zion | Archive Hvy. Machine Gun | -7/Zion | Archive Imp. Carbon-fiber Leg | -7/Zion | Archive Mak. Trap Scanner | -7/Zion | Archive Neutrino Core | -7/Zion | Archive Dynamic Insulation System | -7/Zion | Archive Force Field | -7/Zion | Archive Gravmag System | -7/Zion | Archive Mak. Transmission Jammer | -7/Zion | Archive System Restoration Module | -7/Zion | Archive Imp. Trap Scanner | -7/Zion | Archive Hvy. Battle Rifle | -7/Zion | Archive Robot Schematics ------------------ A-02 Transporter | -7/Zion | Archive T-07 Excavator | -7/Zion | Archive H-88 Terminator | -7/Zion | Archive R-06 Scavenger | -7/Zion | Archive Fabricated ------------ Nothing Alien Tech Used ----------------- None Achievements -------------- Crack Shot Dynamic Key First Step to Greatness Let's See Who's Tougher Risk Taker Robot Respite Storm Trooper System Compromised Tourist Challenges ------------ None Game ------ Seed WardroneTachyonMount Manual? 0 Play Time 00:49:41 Cumulative 1.6 hours Start 2023.04.23 @ 12:53:17 End 2023.04.24 @ 16:37:13 Sessions 3 Manual Loads 0 Difficulty Rogue Special Mode None Game No. 1 Rogue 1 Adventurer 0 Explorer 0 Win Type - Total 0 Types 0/0/0/0/0/0/0/0/0 Lore% 4 Gallery% 2 Achievement% 3 Wizard Run 0 Options --------- ASCII 0 Keyboard 0 Movement Mouse Keybinds 0 Fullscreen 1 Font 18/SmallcapsGlow Map View 76x50 Tactical HUD 1 Map Filters NONE Filters NONE Steam 0 RUN: df54233d-efb6-4573-9dbe-0cd7ec1b7b12